Cogmind - Beta 13 @@@ ROGUE MODE // 2024.04.12 @ 12:07:49 Player: SovietPaperclip Result: Self-destructed Performance ------------- Evolutions (1) 500 Regions Visited (3) 600 Robots Destroyed (22) 110 Value Destroyed (316) 316 Prototype IDs (0) 0 Alien Tech Used (0) 0 Bonus (0) 0 TOTAL SCORE: 1526 Bonus ------- None Cogmind --------- Core Integrity 237/400 Matter 300/300 Energy 115/125 System Corruption 0% Temperature Cool (0) Movement Rolling (200) Ox8 Location -9/Materials Parts ------- > --- POWER (1) -------- Light Ion Engine > --- PROPULSION (2) --- Wheel > --- UTILITY (4) ------ Huge Storage Unit Signal Interpreter > --- WEAPON (2) ------- Light Assault Rifle Mini Grenade Launcher > --- INVENTORY (25) --- Light Ion Engine Large Storage Unit High-capacity Matter Pod (200) Hacking Suite Tractor Beam Light EM Pulse Cannon Light EM Pulse Cannon Light EM Pulse Cannon Peak State ------------ > --- POWER ------------ Ion Engine > --- PROPULSION ------- Wheel Wheel > --- UTILITY ---------- Huge Storage Unit Sensor Array Signal Interpreter > --- WEAPON ----------- Light EM Pulse Cannon Light Assault Rifle > --- INVENTORY -------- Light Ion Engine High-capacity Matter Pod Hacking Suite Tractor Beam Light EM Pulse Cannon Light EM Pulse Cannon [Rating: 10] Favorites ----------- Power Ion Engine Engine Ion Engine Propulsion Wheel Leg Aluminum Leg Wheel Wheel Utility Huge Storage Unit Device Sensor Array Storage Huge Storage Unit Processor Signal Interpreter Weapon Light Assault Rifle Energy Cannon Light EM Pulse Cannon Ballistic Gun Light Assault Rifle Launcher Mini Grenade Launcher Build | -11 -10 -10 -9 ------- Run | Yrd Mat Min Mat Slots Evolved 2 | . . . 2 Power . | . . . . Propulsion . | . . . . Utility 2 | . . . 2 Weapon . | . . . . Parts Attached 17 | 6 4 . 7 Power 2 | 1 . . 1 Engine 2 | 1 . . 1 Core . | . . . . Reactor . | . . . . Propulsion 6 | 2 2 . 2 Treads . | . . . . Leg 2 | 2 . . . Wheel 4 | . 2 . 2 Hover . | . . . . Flight . | . . . . Utility 4 | 1 2 . 1 Device 1 | . 1 . . Storage 2 | 1 1 . . Processor 1 | . . . 1 Hackware . | . . . . Protection . | . . . . Artifact . | . . . . Weapon 5 | 2 . . 3 Energy Gun . | . . . . Energy Cannon 2 | . . . 2 Ballistic Gun 2 | 2 . . . Ballistic Cannon . | . . . . Launcher 1 | . . . 1 Special Weapon . | . . . . Impact Weapon . | . . . . Slashing Weapon . | . . . . Piercing Weapon . | . . . . Special Melee Weapon . | . . . . Unidentified Prototypes . | . . . . Parts Lost 6 | . . . 6 Power 1 | . . . 1 Propulsion 3 | . . . 3 Utility 1 | . . . 1 Weapon 1 | . . . 1 Highest Loss Streak 2 | . . . 2 To Critical Strikes . | . . . . Average Slot Usage (%) 88 | . 96 100 75 Engine 12 | . 14 14 10 Leg 1 | . 2 . . Wheel 23 | . 24 28 20 Device 7 | . 10 14 2 Storage 12 | . 14 14 11 Processor 4 | . . . 11 Ballistic Gun 22 | . 28 28 13 Launcher 2 | . . . 5 Naked Turns . | . . . . Heaviest Build 90 | 13 89 89 90 Greatest Support 20 | 20 20 20 20 Greatest Overweight (x) 8 | 4 4 4 8 Average Overweight (x) 3 | . 3 4 4 Largest Inventory Capacity 25 | 8 25 25 25 Average Capacity 23 | 7 23 25 25 Most Carried 10 | 3 6 5 10 Average Carried 5 | 1 4 5 7 Final Capacity 25 | 8 25 25 25 Final Carried 8 | 1 5 5 8 Class Distribution -------------------- 100% | Mutant Dominant Class ---------------- Mutant | -10/Materials Mutant | -10/Mines Mutant | -9/Materials Resources | -11 -10 -10 -9 ----------- Run | Yrd Mat Min Mat Matter Collected 930 | 260 489 . 181 Remotely . | . . . . Salvage Created 675 | . 375 . 300 Parts 49 | . 24 . 25 Haulers Intercepted 2 | . 2 . . Recyclers Shooed . | . . . . Parts Field Recycled . | . . . . Retrieved Matter . | . . . . Parts Self-Destructed . | . . . . Prevented . | . . . . Kills | -11 -10 -10 -9 ------- Run | Yrd Mat Min Mat Combat Hostiles Destroyed 12 | . 5 . 7 Guns 8 | . 5 . 3 Cannons 2 | . . . 2 AOE 2 | . . . 2 Classes Destroyed 9 | . 7 . 2 Worker 4 | . 2 . 2 Hauler 2 | . 2 . . Recycler 2 | . 1 . 1 Operator 1 | . 1 . . Watcher 1 | . 1 . . Swarmer 7 | . 3 . 4 Grunt 3 | . 2 . 1 Duelist 1 | . . . 1 Sentry 1 | . . . 1 Best Kill Streak 5 | . 3 . 5 Combat Bots Only 3 | . 3 . 3 Max Kills in Single Turn 2 | . 1 . 2 Gunslinging . | . . . . Exploded 1 | . . . 1 Melee . | . . . . Uniques/NPCs Destroyed . | . . . . Combat | -11 -10 -10 -9 -------- Run | Yrd Mat Min Mat Hostile Shots Fired 58 | . 27 . 31 Missed 11 | . 7 . 4 Damage Taken 622 | . 177 . 445 Core 200 | . 37 . 163 Absorbed by Shields . | . . . . Core Remaining (%) 92 | 100 . 85 . Volleys Fired 95 | . 38 2 55 Largest 2 | . 2 2 2 Hottest 76 | . 40 40 76 Shots Fired 155 | . 76 4 75 Gun 147 | . 76 4 67 Cannon 6 | . . . 6 Launcher 2 | . . . 2 Special . | . . . . Kinetic 147 | . 76 4 67 Thermal . | . . . . Explosive 2 | . . . 2 Electromagnetic 6 | . . . 6 Robot Hit Streak 14 | . 14 5 8 Robot Miss Streak 4 | . 4 . 3 Penetration Max . | . . . . Secondary Targets . | . . . . Shots Hit Robots 100 | . 44 4 52 Core Hits 39 | . 20 1 18 Critical Kills . | . . . . Critical Parts Destroyed 1 | . 1 . . Critical Strikes 1 | . 1 . . Destroy 1 | . 1 . . Melee Attacks . | . . . . Impact . | . . . . Slashing . | . . . . Piercing . | . . . . Sneak Attacks . | . . . . Combat Hostiles . | . . . . Follow-up Attacks . | . . . . Damage Inflicted 1271 | . 445 45 781 Guns 878 | . 445 45 388 Cannons 114 | . . . 114 Explosions 279 | . . . 279 Melee . | . . . . Ramming . | . . . . Kinetic 878 | . 445 45 388 Thermal . | . . . . Explosive 279 | . . . 279 Electromagnetic 114 | . . . 114 Impact . | . . . . Slashing . | . . . . Piercing . | . . . . Highest Corruption . | . . . . Average Corruption . | . . . . Corruption Purged . | . . . . Corruption Blocked . | . . . . Overload Shots . | . . . . Overflow Damage 22 | . . . 22 Projectiles . | . . . . Explosions 22 | . . . 22 Melee . | . . . . Knockbacks . | . . . . Impact . | . . . . Kinetic . | . . . . Secondary . | . . . . Self-Inflicted Damage 87 | . . . 87 Shots 2 | . . . 2 Rammed . | . . . . Targets Rammed . | . . . . Kicked . | . . . . Crushed . | . . . . Highest Temperature 62 | . 6 . 62 Average Temperature 21 | . 6 . 25 Received Heat Transfer 69 | . 36 . 33 Siege Activations . | . . . . Robots Corrupted . | . . . . Combat Hostiles . | . . . . Parts Fried . | . . . . Impact Corruptions . | . . . . Robots Melted . | . . . . Combat Hostiles . | . . . . Parts Melted . | . . . . Heat Transferred . | . . . . Parts Sabotaged . | . . . . Parts Stolen . | . . . . Parts Stripped . | . . . . Power Chain Reactions . | . . . . Alert | -11 -10 -10 -9 ------- Run | Yrd Mat Min Mat Peak Influence 121 | . 119 46 121 Initial 46 | . . 46 17 Average 60 | . 62 46 65 Maximum Alert Level . | . . . . Low Security (%) 100 | 100 100 100 100 Level 1 . | . . . . Level 2 . | . . . . Level 3 . | . . . . Level 4 . | . . . . Level 5 . | . . . . High Security . | . . . . Max Security . | . . . . Squads Dispatched 1 | . 1 . . Investigation . | . . . . Extermination . | . . . . Reinforcement 1 | . 1 . . Assault . | . . . . Garrison . | . . . . Intercept . | . . . . Searches Triggered . | . . . . Construction Impeded . | . . . . Haulers Reinforced . | . . . . Active Scanning Responses . | . . . . Cargo Convoy Interrupts . | . . . . Stealth | -11 -10 -10 -9 --------- Run | Yrd Mat Min Mat Distress Signals 1 | . 1 . . Communications Jammed . | . . . . Distress Signals . | . . . . Times Spotted 19 | . 11 . 8 Peak Tracking Total 6 | . 6 . 4 Tactical Retreats 3 | . 2 . 1 Traps | -11 -10 -10 -9 ------- Run | Yrd Mat Min Mat Traps Triggered . | . . . . Indirectly . | . . . . Trap Hack Attempts . | . . . . Triggered . | . . . . Disarmed . | . . . . Reprogrammed . | . . . . Reused . | . . . . Traps Extracted . | . . . . Installed . | . . . . Triggered . | . . . . Machines | -11 -10 -10 -9 ---------- Run | Yrd Mat Min Mat Machines Disabled . | . . . . Max in Single Turn . | . . . . Machines Repaired . | . . . . Machines Dismantled . | . . . . Machines Sabotaged . | . . . . Overloaded Fab Kills . | . . . . Hacking | -11 -10 -10 -9 --------- Run | Yrd Mat Min Mat Machines Accessed 5 | . 3 . 2 Terminals 5 | . 3 . 2 Fabricators . | . . . . Repair Stations . | . . . . Recycling Units . | . . . . Scanalyzers . | . . . . Garrison Access . | . . . . Total Hacks 9 | . 5 . 4 Successful 3 | . 2 . 1 Failed 6 | . 3 . 3 Catastrophic 1 | . . . 1 Database Lockouts . | . . . . Manual 6 | . 3 . 3 Terminals 9 | . 5 . 4 Fabricators . | . . . . Repair Stations . | . . . . Recycling Units . | . . . . Scanalyzers . | . . . . Garrison Access . | . . . . Terminal Hacks 1 | . 1 . . Record 1 | . 1 . . Fabricator Hacks . | . . . . Repair Station Hacks . | . . . . Recycling Unit Hacks . | . . . . Scanalyzer . | . . . . Garrison Access Hacks . | . . . . Unauthorized Hacks 2 | . 1 . 1 Terminals 2 | . 1 . 1 Botnet 2 | . 1 . 1 Fabricators . | . . . . Repair Stations . | . . . . Recycling Units . | . . . . Scanalyzers . | . . . . Garrison Access . | . . . . Data Cores Recovered 1 | . 1 . . Used 1 | . 1 . . Hacking Detections 4 | . 2 . 2 Full Trace Events . | . . . . Feedback Events . | . . . . Feedback Blocked . | . . . . Robot Schematics Acquired . | . . . . Robots Built . | . . . . Authchips . | . . . . Time . | . . . . Total Robot Build Rating . | . . . . Part Schematics Acquired . | . . . . Parts Built . | . . . . Authchips . | . . . . Time . | . . . . Total Part Build Rating . | . . . . Parts Repaired . | . . . . Time . | . . . . Parts Recycled . | . . . . Recycled Matter . | . . . . Retrieved Matter . | . . . . Retrieved Components . | . . . . Parts Scanalyzed . | . . . . Part Schematics Acquired . | . . . . Parts Damaged . | . . . . Bothacking | -11 -10 -10 -9 ------------ Run | Yrd Mat Min Mat Used RIF Installer . | . . . . Robots Hacked . | . . . . Non-combat . | . . . . Combat . | . . . . Robot Hacks Applied . | . . . . Relay Couplers Released . | . . . . Fabnet Peak Effective % . | . . . . Robots Rewired . | . . . . Allies Hacked . | . . . . Hacks Repelled . | . . . . Allies | -11 -10 -10 -9 -------- Run | Yrd Mat Min Mat Total Allies . | . . . . Largest Group . | . . . . Highest-Rated Group . | . . . . Highest-Rated Ally . | . . . . Total Orders . | . . . . Ally Attacks . | . . . . Total Damage . | . . . . Kills . | . . . . Allies Corrupted . | . . . . Allies Melted . | . . . . Intel | -11 -10 -10 -9 ------- Run | Yrd Mat Min Mat Robot Analysis Total . | . . . . Derelict Logs Recovered 1 | . . 1 . Drone Launches . | . . . . Drone Recoveries . | . . . . Exploration | -11 -10 -10 -9 ------------- Run | Yrd Mat Min Mat Turns Passed 1386 | 47 673 131 535 Spaces Moved 761 | 28 377 90 266 Core 13 | 13 . . . Treads . | . . . . Legs 55 | 15 40 . . Wheels 693 | . 337 90 266 Hover . | . . . . Flight . | . . . . Fastest Speed 50 | 50 120 140 140 Average Speed 139 | 123 137 140 142 Slowest Speed 250 | 250 140 140 200 Overloaded Moves . | . . . . Propulsion Burnouts . | . . . . Robots Hopped . | . . . . Cave-ins Triggered . | . . . . Exploration Rate (%) 27 | 3 60 27 21 Regions Visited 3 Branch Regions 1 Pre-discovered Areas . | . . . . Known Exits Taken 1 | . . 1 . Unknown Exits Taken 2 | 1 1 . . Scrap Searched . | . . . . Spaces Dug . | . . . . Terrain Destroyed 7 | . . . 7 Melee . | . . . . Projectile . | . . . . AOE 7 | . . . 7 Terrain Rammed . | . . . . Walls Destroyed . | . . . . Machines Disabled . | . . . . Actions | -11 -10 -10 -9 --------- Run | Yrd Mat Min Mat Total 953 | 40 464 91 358 Wait 54 | . 33 . 21 Move 758 | 27 376 89 266 Hop . | . . . . Pick Up 24 | 7 9 . 8 Fast Attach . | . . . . Attach 16 | 6 4 . 6 Detach 1 | . . . 1 Swap 1 | . . . 1 Drop 4 | . 4 . . Fire 95 | . 38 2 55 Melee . | . . . . Ram . | . . . . Kick . | . . . . Crush . | . . . . Escape Stasis . | . . . . Rewire . | . . . . Trap . | . . . . Miscellaneous . | . . . . Route ------- -11/Scrapyard -10/Materials (discovered 3 exits: *Mat / [*Min x2]) -10/Mines (discovered 2 exits: *Mat x2) -9/Materials (discovered 1 exit: [*Mat]) History --------- Turn | Location | Event 23 | -11/Scrapyard | Discovered new exit (range 15) 48 | -11/Scrapyard | Entered Materials 154 | -10/Materials | Discovered new exit (range 10) 310 | -10/Materials | Build established: Mutant 502 | -10/Materials | Discovered new exit (range 10) 696 | -10/Materials | Discovered new exit (range 8) 721 | -10/Materials | Entered Mines 824 | -10/Mines | Identified exit to Materials 829 | -10/Mines | Discovered exit to Materials (range 15) 852 | -10/Mines | Entered Materials 852 | -9/Materials | Evolved 2 slots: Utility x2 1205 | -9/Materials | Discovered new exit (range 16) 1387 | -9/Materials | Self-destructed Last Messages --------------- 01362_ Destroyed Flight Unit. 01363_ K-01 Serf collects debris. 01370_ Wheel destroyed. 01378_ R-06 Scavenger collects Flight Unit. 01378_ S-10 Pest destroyed. 01379_ Acquired 11 matter. 01379_ K-01 Serf collects debris. 01380_ Destroyed Flight Unit. 01380_ S-10 Pest destroyed. 01380_ R-06 Scavenger destroyed. 01380_ Destroyed Wheel. 01381_ Acquired 29 matter. 01381_ U-05 Engineer lays Concrete. 01383_ S-10 Pest destroyed. 01383_ Wheel destroyed. 01383_ Destroyed Wheel. 01383_ K-01 Serf destroyed. 01384_ Acquired 6 matter. 01384_ U-05 Engineer lays Concrete. 01387_ Acquired 10 matter. Map ----- +----------------------------------------------------+ | ?????????????????????????????????????????????? | | ?????????????????????????????????????????????? | | ?????????????????????????????????????????????? | | ?????????????????????????????????????????????? | | ?????????????????????????????????????????????? | | ?????????????????????????????????????????????? | | ?????????????????????????????????????????????? | | ?????????????????????????????????????????????? | | ?????????????????????????????????????????????? | | ?????????????????????????????????????????????? | | ?????????????????????????????????????????????? | | ?????????????????????????????????????????????? | | ?????????????????????????????????????????????? | | ?????????????????????????????????????????????? | | ?????????????????????????????????????????????? | | ?????????????????????????????????????????????? | | ?????????????????????????????????????????????? | | ?????????????????????????????????#???????????? | | ???????????????????????????????? #???????????? | | ????########???????##?##?????? #??????###### | | ????? ######### # ###### ??????# | | ?????""""" # #?????# "S | | ???? """"" # * u t #?????# """ | | ???? """"" # #?????# "" | | ???? """"" + ### ![ ####????????????# | | ?????""""" # # %![@ #???????????????# | | ?????""""" # # =* #???????????????# | | ?????""""" # # ! #???????????????###### | | ????? ##### ###################### | | ?????#######???# | u | | ???????????????# || ############+######### | | ???????????????# ]|| #????????# #??? | | ???????????????# #????????# """ #? "" | | ???????????????# #????????# "T" ## "" | | ???????????????##########????????# " " ## "" | | ?????????????????????????????????# ## | | ?????????????????????????????????# ## | | ?????????????????????????????????############# | | ?????????????????????????????????????????????? | | | | | | | | | | | | | | | | | | | | | | | +----------------------------------------------------+ Best States ------------- Heat Dissipation 28 Energy Generation 10 Energy Capacity 250 Matter Stores 300 Matter Capacity 300 Sight Range 16 Robot Scan Range 14 Terrain Scan Density 10 Evasion (%) 55 Item Schematics ----------------- None Robot Schematics ------------------ None Fabricated ------------ Nothing Alien Tech Used ----------------- None Achievements -------------- None Challenges ------------ None Game ------ Seed ZhirovShockClaw Manual? 0 Play Time 00:09:21 Cumulative 78.5 hours Start 2024.04.12 @ 11:56:10 End 2024.04.12 @ 12:07:49 Sessions 1 Manual Loads 0 Difficulty Rogue Special Mode None Game No. 89 Rogue 89 Adventurer 0 Explorer 0 Win Type - Total 1 Types 1/0/0/0/0/0/0/0/0 Lore% 41 Gallery% 46 Achievement% 43 Wizard Run 0 Options --------- Layout 1 ASCII 0 Keyboard 0 Movement Mouse Keybinds 0 Fullscreen 2 Font 32/Smallcaps Map View 50x40 Zoom Use 0% Tactical HUD 1 Map Filters NONE Filters NONE Steam 1 RUN: b00ec5b2-0188-456a-bf62-2b7ca0886ee0